[Event "Polish Youth Ekstraliga 2022"]
[Site "Lublin"]
[Date "2022.06.30"]
[Round "6.11"]
[White "Goraj, Barbara"]
[Black "Dylag, Emilia"]
[Result "1-0"]
[ECO "A14"]
[WhiteElo "2035"]
[BlackElo "2022"]
[Annotator "NA RC"]
[PlyCount "173"]
[EventDate "2022.06.24"]
[EventType "team-tourn"]
[EventCountry "POL"]
[SourceTitle "playchess.com"]
[Source "ChessBase"]
[SourceQuality "1"]
[TimeControl "40/5400+30:1800+30"]

1. c4 {[%emt 0:00:06]} e6 {[%emt 0:00:07]} 2. Nf3 {[%emt 0:00:07]} Nf6 {[%emt 0:00:10]} 3. g3 {[%emt 0:00:09]} d5 {[%emt 0:00:12]} 4. Bg2 {[%emt 0:00:09]} Be7 {[%emt 0:00:15]} 5. O-O {[%emt 0:00:16]} O-O {[%emt 0:00:08]} 6. b3 {[%emt 0:00:16]} c5 {[%emt 0:00:31]} 7. Bb2 {[%emt 0:00:20]} d4 {[%emt 0:00:22]} 8. e3 {[%emt 0:00:54]} Nc6 {[%emt 0:00:29]} 9. exd4 {[%emt 0:00:32]} cxd4 {[%emt 0:00:08]} 10. Re1 {[%emt 0:01:26]} Bc5 {[%emt 0:00:59]} 11. d3 {[%emt 0:12:16]} Re8 {[%emt 0:04:15]} 12. Ne5 {[%emt 0:06:26] The main line 12.Ne5 scores better than 12.a3.} Nxe5 {[%emt 0:00:35]} 13. Rxe5 {[%emt 0:00:06]} Qd6 {[%emt 0:05:12] 13...Bd6 is vanishing.} 14. f4 {[%emt 0:02:47]} Rb8 {[%emt 0:06:11]} 15. a3 {[%emt 0:04:44]} a5 {[%emt 0:01:41]} 16. Nd2 {[%emt 0:04:32]} b6 {[%emt 0:04:57]} 17. h3 {[%emt 0:07:55] [#]} Nd7 $146 {[%emt 0:08:50]} ({Predecessor:} 17... Bb7 18. Bxb7 Rxb7 19. Qf3 Rbe7 20. Qf2 Nd7 21. b4 axb4 22. axb4 Bxb4 23. Ne4 Qc6 {1-0 (112) Jimenez Garcia,E (2397)-Chinchilla,A (2178) Tornelo INT 2021}) 18. Re1 {[%emt 0:08:56]} Bb7 {[%emt 0:14:30]} 19. Bxb7 {[%emt 0:02:06]} Rxb7 {[%emt 0:00:07]} 20. Ne4 {[%emt 0:00:49]} Qb8 {[%emt 0:04:47]} 21. Qc2 {[%emt 0:07:05]} (21. Rb1 $11) 21... f5 {[%emt 0:12:38]} (21... e5 $15) 22. Ng5 {[%emt 0:01:14]} Qd6 {[%emt 0:01:54]} 23. Qf2 {[%emt 0:05:46]} Nf6 {[%emt 0:16:16]} 24. Nf3 {[%emt 0:03:54]} Rd8 {[%emt 0:01:12]} 25. Qg2 {[%emt 0:07:48]} Rc7 {[%emt 0:06:08]} (25... Rbb8 $11 {might be stronger.}) 26. Re5 {[%emt 0:02:17]} Nd7 {[%emt 0:04:11]} 27. Re2 {[%emt 0:00:27]} Nf8 {[%emt 0:00:37]} 28. Kh2 {[%emt 0:01:00]} Rb8 {[%emt 0:03:11]} (28... Rcc8 $14) 29. Qf2 {[%emt 0:05:39]} Rd7 {[%emt 0:00:27]} 30. Ne5 {[%emt 0:02:13]} Rc7 {[%emt 0:01:04]} 31. Qe1 {[%emt 0:02:04]} h6 {[%emt 0:01:44]} 32. Bc1 {[%emt 0:01:17]} Qe7 {[%emt 0:00:41]} 33. Rea2 {[%emt 0:02:19]} Re8 {[%emt 0:00:36]} 34. Bd2 {[%emt 0:01:05]} Nd7 {[%emt 0:01:30]} 35. b4 {[%emt 0:03:48]} axb4 {[%emt 0:00:48]} 36. axb4 {[%emt 0:00:25]} Bd6 {[%emt 0:00:08]} 37. Nf3 {[%emt 0:02:37]} e5 {[%emt 0:00:28]} 38. fxe5 {[%emt 0:00:34]} Nxe5 {[%emt 0:00:31]} 39. Nxe5 {[%emt 0:01:41]} Bxe5 {[%emt 0:00:13]} 40. Qf2 {[%emt 0:00:00]} Qd6 {[%emt 0:00:00]} 41. Ra8 {[%emt 0:05:00]} Rce7 {[%emt 0:03:47]} 42. Rxe8+ {[%emt 0:02:57]} Rxe8 {[%emt 0:00:22]} 43. Re1 {[%emt 0:01:18]} Ra8 {[%emt 0:05:43]} 44. Re2 {[%emt 0:03:59]} g5 {[%emt 0:19:34]} 45. Qxf5 {[%emt 0:02:08]} Bxg3+ {[%emt 0:00:24]} 46. Kg2 {[%emt 0:01:18]} Bh4 {[%emt 0:02:14]} 47. Be1 {[%emt 0:03:03]} Bxe1 {[%emt 0:02:37]} 48. Rxe1 {[%emt 0:00:26]} Ra2+ {[%emt 0:00:27]} 49. Kf3 {[%emt 0:03:23]} Rd2 {[%emt 0:00:38]} 50. b5 {[%emt 0:07:39]} Kg7 {[%emt 0:00:24] [#]} 51. h4 $1 {[%emt 0:04:31]} ({Less strong is} 51. Re6 Rxd3+ 52. Ke2 Re3+ 53. Rxe3 dxe3 54. Kxe3 Qd1 $14) 51... Qf6 {[%emt 0:00:35]} 52. Qxf6+ {[%emt 0:00:25]} Kxf6 {[%emt 0:00:05]} 53. hxg5+ {[%emt 0:00:06]} Kxg5 {[%emt 0:00:16]} 54. Ke4 {[%emt 0:00:18]} Rg2 {[%emt 0:00:24]} 55. Kxd4 {[%emt 0:00:46]} h5 {[%emt 0:00:06]} 56. c5 $2 {[%emt 0:01:26]} (56. Re5+ Kg6 57. Re6+ Kg7 58. Rxb6) 56... bxc5+ {[%emt 0:00:08]} 57. Kxc5 {[%emt 0:00:02]} h4 {[%emt 0:00:18]} 58. b6 {[%emt 0:01:37]} h3 {[%emt 0:00:30]} 59. b7 {[%emt 0:00:51]} (59. Rb1 $142 h2 60. b7 Rc2+ 61. Kd6) 59... Rb2 {[%emt 0:00:11]} 60. Kc6 {[%emt 0:00:22]} Rc2+ {[%emt 0:00:34]} 61. Kd7 {[%emt 0:00:46]} Rb2 {[%emt 0:00:11]} 62. Kc7 {[%emt 0:00:27]} Rc2+ {[%emt 0:00:07]} 63. Kb8 {[%emt 0:00:30]} Rd2 {[%emt 0:01:05]} 64. Kc8 {[%emt 0:00:32]} Rc2+ {[%emt 0:00:06]} 65. Kd8 {[%emt 0:00:06]} Rb2 {[%emt 0:00:07]} 66. Kc7 {[%emt 0:00:51]} Rc2+ {[%emt 0:00:05]} 67. Kd6 {[%emt 0:00:15]} Rb2 {[%emt 0:00:07]} 68. Re5+ {[%emt 0:00:37]} Kg4 $2 {[%emt 0:00:32]} (68... Kf4 $11) 69. Kc6 {[%emt 0:00:42]} ({Not} 69. Re4+ Kf3 $16) 69... h2 {[%emt 0:00:26]} 70. Re1 {[%emt 0:00:23]} Rc2+ {[%emt 0:00:11]} 71. Kd6 {[%emt 0:00:16]} Rb2 {[%emt 0:00:07]} 72. Kc7 {[%emt 0:00:45]} Rc2+ {[%emt 0:00:04]} 73. Kd7 {[%emt 0:00:27]} Rb2 {[%emt 0:00:05]} 74. Kc8 {[%emt 0:00:27]} Rc2+ {[%emt 0:00:06]} 75. Kb8 {[%emt 0:00:16]} Rd2 {[%emt 0:00:48]} 76. Rb1 {[%emt 0:00:40]} Rxd3 {[%emt 0:01:09]} 77. Kc7 {[%emt 0:00:24]} Rc3+ {[%emt 0:00:22]} 78. Kd7 {[%emt 0:00:20]} Rd3+ {[%emt 0:00:17]} 79. Kc7 {[%emt 0:00:48]} Rh3 {[%emt 0:04:44]} 80. b8=Q {[%emt 0:00:14]} h1=Q {[%emt 0:00:15]} 81. Qg8+ {[%emt 0:00:18]} Kf4 {[%emt 0:00:14]} 82. Qf7+ {[%emt 0:00:23]} Kg3 {[%emt 0:00:28]} 83. Qg6+ {[%emt 0:00:16]} Kf4 {[%emt 0:00:44]} 84. Qf6+ {[%emt 0:00:34]} Ke3 {[%emt 0:00:30]} 85. Qe5+ {[%emt 0:00:49]} Kf2 {[%emt 0:00:29]} 86. Qd4+ {[%emt 0:00:34]} Kg2 {[%emt 0:00:27]} 87. Qe4+ {[%emt 0:00:24]} 1-0

[Event "Polish Youth Ekstraliga 2022"]
[Site "Lublin"]
[Date "2022.06.30"]
[Round "6.12"]
[White "Bandyk, Joanna"]
[Black "Jaros, Emilia"]
[Result "0-1"]
[ECO "C00"]
[WhiteElo "1360"]
[BlackElo "1366"]
[Annotator "NA RC"]
[PlyCount "70"]
[EventDate "2022.06.24"]
[EventType "team-tourn"]
[EventCountry "POL"]
[SourceTitle "playchess.com"]
[Source "ChessBase"]
[SourceQuality "1"]
[TimeControl "40/5400+30:1800+30"]

1. e4 {[%emt 0:00:02]} e6 {[%emt 0:00:17]} 2. d3 {[%emt 0:00:10]} d5 {[%emt 0:00:23]} 3. Nd2 {[%emt 0:00:22]} c5 {[%emt 0:00:37]} 4. Ngf3 {[%emt 0:00:28]} Nc6 {[%emt 0:00:32]} 5. g3 {[%emt 0:00:44]} Bd6 {[%emt 0:00:51]} 6. Bg2 {[%emt 0:00:47]} Nge7 {[%emt 0:00:40]} 7. O-O {[%emt 0:01:34]} O-O {[%emt 0:00:58]} 8. c3 {[%emt 0:02:39]} Bd7 {[%emt 0:05:17]} 9. Re1 {[%emt 0:01:26]} Qc7 {[%emt 0:01:04]} 10. Nf1 {[%emt 0:13:44]} d4 {[%emt 0:07:00]} 11. c4 {[%emt 0:05:32]} e5 {[%emt 0:05:13]} 12. Nh4 {[%emt 0:11:31]} f5 {[%emt 0:09:20]} 13. exf5 {[%emt 0:06:37]} Nxf5 {[%emt 0:03:09]} 14. Bd5+ {[%emt 0:05:14]} Kh8 {[%emt 0:00:47]} 15. Qh5 {[%emt 0:01:54]} Nxh4 {[%emt 0:03:00]} 16. Qxh4 {[%emt 0:01:56]} Nb4 {[%emt 0:01:48]} 17. Be4 {[%emt 0:01:41]} Bf5 {[%emt 0:01:40]} 18. Rd1 {[%emt 0:04:29]} Qf7 {[%emt 0:02:44]} 19. g4 {[%emt 0:06:38]} Bxe4 {[%emt 0:02:42]} 20. dxe4 {[%emt 0:01:27]} Qf3 {[%emt 0:01:23]} 21. Bg5 {[%emt 0:02:42]} Nd3 {[%emt 0:04:10]} 22. Rd2 {[%emt 0:01:05]} Nf4 {[%emt 0:01:24]} 23. Bxf4 {[%emt 0:01:36]} Rxf4 {[%emt 0:10:36]} 24. h3 {[%emt 0:01:57]} Qxe4 {[%emt 0:01:31]} 25. Ng3 {[%emt 0:00:48]} Qg6 {[%emt 0:01:36]} 26. Nh5 {[%emt 0:01:52]} Rf3 {[%emt 0:01:56]} 27. Ng3 {[%emt 0:01:18]} e4 {[%emt 0:01:00]} 28. Re1 {[%emt 0:04:57]} Bxg3 {[%emt 0:02:01]} 29. fxg3 {[%emt 0:00:23]} e3 {[%emt 0:00:52]} 30. Rde2 {[%emt 0:01:12]} d3 {[%emt 0:03:12]} 31. Kg2 {[%emt 0:02:24]} Qe4 {[%emt 0:01:37]} 32. Kg1 {[%emt 0:01:47]} dxe2 {[%emt 0:00:42]} 33. Rxe2 {[%emt 0:00:25]} Qb1+ {[%emt 0:00:29]} 34. Kh2 {[%emt 0:00:31]} Rf2+ {[%emt 0:00:20]} 35. Rxf2 {[%emt 0:00:12]} exf2 {[%emt 0:00:10]} 0-1

[Event "Polish Youth Ekstraliga 2022"]
[Site "Lublin"]
[Date "2022.06.30"]
[Round "6.13"]
[White "Kazmierowski, Tymon"]
[Black "Czernek, Tymon"]
[Result "0-1"]
[ECO "A48"]
[WhiteElo "2020"]
[BlackElo "2199"]
[Annotator "RC"]
[PlyCount "60"]
[EventDate "2022.06.24"]
[EventType "team-tourn"]
[EventCountry "POL"]
[SourceTitle "playchess.com"]
[Source "ChessBase"]
[SourceQuality "1"]
[TimeControl "40/5400+30:1800+30"]

1. d4 {[%emt 0:00:02]} Nf6 {[%emt 0:00:03]} 2. Nf3 {[%emt 0:00:06]} g6 {[%emt 0:00:03]} 3. c4 {[%emt 0:00:05]} Bg7 {[%emt 0:00:04]} 4. Nc3 {[%emt 0:00:05]} O-O {[%emt 0:00:06]} 5. Bg5 {[%emt 0:00:07]} d6 {[%emt 0:09:31]} 6. e3 {[%emt 0:00:13]} Qe8 {[%emt 0:03:31]} 7. Be2 {[%emt 0:12:31]} e5 {[%emt 0:05:09]} 8. O-O {[%emt 0:01:14]} h6 {[%emt 0:20:50]} 9. Bh4 {[%emt 0:08:03]} g5 {[%emt 0:06:04]} 10. dxe5 {[%emt 0:00:35]} dxe5 {[%emt 0:00:36]} 11. Bg3 {[%emt 0:00:04]} Nfd7 {[%emt 0:03:47]} 12. e4 {[%emt 0:06:12]} Nc6 {[%emt 0:06:02]} 13. h4 {[%emt 0:04:49]} f6 {[%emt 0:09:56]} 14. Qd5+ {[%emt 0:09:38]} Kh8 {[%emt 0:01:03]} 15. c5 {[%emt 0:01:27]} Qe7 {[%emt 0:02:22]} 16. Na4 {[%emt 0:02:19]} Rd8 {[%emt 0:00:56]} 17. Rac1 {[%emt 0:09:54]} g4 {[%emt 0:03:53]} 18. Nh2 {[%emt 0:01:34]} Nb6 {[%emt 0:00:52]} 19. Nxb6 {[%emt 0:04:10]} Rxd5 {[%emt 0:01:40]} 20. Nxd5 {[%emt 0:00:23]} Qf7 {[%emt 0:01:15]} 21. Bc4 {[%emt 0:06:46]} Be6 {[%emt 0:02:35]} 22. Rfd1 {[%emt 0:09:54]} Rd8 {[%emt 0:01:04]} 23. b3 {[%emt 0:02:45]} Nd4 {[%emt 0:01:15]} 24. Nf1 {[%emt 0:03:21]} f5 {[%emt 0:01:56]} 25. Nc3 {[%emt 0:00:17]} Bxc4 {[%emt 0:00:29]} 26. bxc4 {[%emt 0:00:03]} f4 {[%emt 0:00:09]} 27. Bh2 {[%emt 0:00:05]} c6 {[%emt 0:00:44]} 28. Nd2 {[%emt 0:01:13]} Qg6 {[%emt 0:00:42]} 29. Kh1 {[%emt 0:00:23]} Bf6 {[%emt 0:00:52]} 30. Nb3 {[%emt 0:01:23]} g3 {[%emt 0:00:46]} 0-1

[Event "Polish Youth Ekstraliga 2022"]
[Site "Lublin"]
[Date "2022.06.30"]
[Round "6.14"]
[White "Chyzy, Jakub"]
[Black "Grzadka, Artur"]
[Result "1-0"]
[ECO "C42"]
[WhiteElo "2191"]
[BlackElo "1718"]
[Annotator "RC"]
[PlyCount "63"]
[EventDate "2022.06.24"]
[EventType "team-tourn"]
[EventCountry "POL"]
[SourceTitle "playchess.com"]
[Source "ChessBase"]
[SourceQuality "1"]
[TimeControl "40/5400+30:1800+30"]

1. e4 {[%emt 0:00:01]} e5 {[%emt 0:00:04]} 2. Nf3 {[%emt 0:00:12]} Nf6 {[%emt 0:00:05]} 3. Nxe5 {[%emt 0:00:17]} d6 {[%emt 0:00:08]} 4. Nf3 {[%emt 0:00:05]} Nxe4 {[%emt 0:00:18]} 5. Nc3 {[%emt 0:00:03]} Nxc3 {[%emt 0:00:11]} 6. dxc3 {[%emt 0:00:04]} Be7 {[%emt 0:00:11]} 7. Bf4 {[%emt 0:00:11]} Nc6 {[%emt 0:00:30]} 8. Qd2 {[%emt 0:00:25]} Be6 {[%emt 0:00:54]} 9. O-O-O {[%emt 0:02:00]} Qd7 {[%emt 0:00:09]} 10. Kb1 {[%emt 0:04:03]} O-O-O {[%emt 0:00:16]} 11. Bb5 {[%emt 0:01:46]} Bg4 {[%emt 0:06:17]} 12. Qd5 {[%emt 0:03:10]} Be6 {[%emt 0:24:23]} 13. Qe4 {[%emt 0:13:05]} a6 {[%emt 0:05:51]} 14. Ne5 {[%emt 0:01:01]} Bf5 {[%emt 0:19:53]} 15. Qe3 {[%emt 0:23:40]} Bxc2+ {[%emt 0:09:54]} 16. Kxc2 {[%emt 0:00:57]} Nb4+ {[%emt 0:00:17]} 17. cxb4 {[%emt 0:00:20]} Qxb5 {[%emt 0:00:10]} 18. Nd3 {[%emt 0:06:40]} Rhe8 {[%emt 0:02:23]} 19. Kb1 {[%emt 0:10:07]} g5 {[%emt 0:02:03]} 20. Bg3 {[%emt 0:04:02]} h5 {[%emt 0:00:34]} 21. h4 {[%emt 0:02:51]} gxh4 {[%emt 0:01:06]} 22. Bxh4 {[%emt 0:01:41]} Bxh4 {[%emt 0:01:23]} 23. Qh3+ {[%emt 0:00:13]} Kb8 {[%emt 0:00:55]} 24. Qxh4 {[%emt 0:00:05]} a5 {[%emt 0:02:16]} 25. Qxh5 {[%emt 0:00:59]} d5 {[%emt 0:00:13]} 26. bxa5 {[%emt 0:12:11]} c5 {[%emt 0:00:18]} 27. Qh2+ {[%emt 0:00:52]} Ka8 {[%emt 0:00:55]} 28. Qc7 {[%emt 0:00:41]} c4 {[%emt 0:00:04]} 29. Qc5 {[%emt 0:00:49]} Qa4 {[%emt 0:00:48]} 30. Qb4 {[%emt 0:00:41]} Qc6 {[%emt 0:00:34]} 31. Nc5 {[%emt 0:00:44]} Rc8 {[%emt 0:00:38]} 32. Na4 {[%emt 0:05:05]} 1-0

[Event "Polish Youth Ekstraliga 2022"]
[Site "Lublin"]
[Date "2022.06.30"]
[Round "6.15"]
[White "Przybylski, Jan"]
[Black "Krawczyk, Flawian"]
[Result "0-1"]
[ECO "B94"]
[WhiteElo "1694"]
[BlackElo "2212"]
[Annotator "RC"]
[PlyCount "92"]
[EventDate "2022.06.24"]
[EventType "team-tourn"]
[EventCountry "POL"]
[SourceTitle "playchess.com"]
[Source "ChessBase"]
[SourceQuality "1"]
[TimeControl "40/5400+30:1800+30"]

1. e4 {[%emt 0:09:44]} c5 {[%emt 0:00:04]} 2. Nf3 {[%emt 0:00:05]} d6 {[%emt 0:00:03]} 3. d4 {[%emt 0:00:05]} cxd4 {[%emt 0:00:02]} 4. Nxd4 {[%emt 0:00:06]} Nf6 {[%emt 0:00:03]} 5. Nc3 {[%emt 0:00:05]} a6 {[%emt 0:00:02]} 6. Bg5 {[%emt 0:00:26]} Nbd7 {[%emt 0:00:05]} 7. f4 {[%emt 0:00:54]} Qc7 {[%emt 0:00:05]} 8. Qf3 {[%emt 0:01:07]} h6 {[%emt 0:00:04]} 9. Bxf6 {[%emt 0:03:16]} Nxf6 {[%emt 0:00:09]} 10. f5 {[%emt 0:01:30]} Qc5 {[%emt 0:00:06]} 11. O-O-O {[%emt 0:02:36]} g5 {[%emt 0:00:34]} 12. Nb3 {[%emt 0:11:06]} Qc7 {[%emt 0:05:08]} 13. g4 {[%emt 0:04:10]} Bd7 {[%emt 0:08:56]} 14. Bg2 {[%emt 0:08:35]} Rc8 {[%emt 0:02:51]} 15. Rd2 {[%emt 0:02:15]} Bc6 {[%emt 0:19:37]} 16. h4 {[%emt 0:20:03]} Rg8 {[%emt 0:05:59]} 17. h5 {[%emt 0:04:55]} Bg7 {[%emt 0:01:12]} 18. Nd4 {[%emt 0:11:04]} Nd7 {[%emt 0:01:30]} 19. Rhd1 {[%emt 0:03:44]} Bf6 {[%emt 0:10:02]} 20. Qe2 {[%emt 0:04:03]} Qa5 {[%emt 0:01:54]} 21. Kb1 {[%emt 0:02:02]} Ne5 {[%emt 0:01:21]} 22. Bf1 {[%emt 0:01:50]} Kf8 {[%emt 0:04:04]} 23. Nb3 {[%emt 0:06:30]} Qd8 {[%emt 0:04:42]} 24. Nd5 {[%emt 0:00:50]} Kg7 {[%emt 0:01:30]} 25. Nxf6 {[%emt 0:00:34]} Kxf6 {[%emt 0:00:05]} 26. Nd4 {[%emt 0:00:50]} Qa5 {[%emt 0:03:23]} 27. Nb3 {[%emt 0:00:39]} Qb6 {[%emt 0:03:31]} 28. Rd4 {[%emt 0:00:23]} Qc7 {[%emt 0:03:06]} 29. c3 {[%emt 0:00:35]} b5 {[%emt 0:01:08]} 30. Rc1 {[%emt 0:00:42]} Qb6 {[%emt 0:02:03]} 31. Qd1 {[%emt 0:00:14]} Rgd8 {[%emt 0:01:53]} 32. Rc2 {[%emt 0:00:30]} a5 {[%emt 0:01:10]} 33. a3 {[%emt 0:00:33]} b4 {[%emt 0:05:32]} 34. axb4 {[%emt 0:00:46]} Ba4 {[%emt 0:01:57]} 35. Nxa5 {[%emt 0:00:33]} Bxc2+ {[%emt 0:00:14]} 36. Kxc2 {[%emt 0:00:07]} Nxg4 {[%emt 0:01:15]} 37. Kb1 {[%emt 0:00:11]} Ne5 {[%emt 0:01:14]} 38. Nc4 {[%emt 0:00:32]} Nxc4 {[%emt 0:01:54]} 39. Bxc4 {[%emt 0:00:13]} Rg8 {[%emt 0:04:54]} 40. Qb3 {[%emt 0:00:00]} Rcf8 {[%emt 0:00:00]} 41. Bxf7 {[%emt 0:26:29]} Rxf7 {[%emt 0:07:50]} 42. Qe6+ {[%emt 0:00:13]} Kg7 {[%emt 0:00:04]} 43. e5 {[%emt 0:00:26]} Qb5 {[%emt 0:07:45]} 44. Qg6+ {[%emt 0:01:36]} Kf8 {[%emt 0:00:22]} 45. Qxh6+ {[%emt 0:00:09]} Ke8 {[%emt 0:00:16]} 46. exd6 {[%emt 0:00:18]} Qxf5+ {[%emt 0:00:22]} 0-1

[Event "Polish Youth Ekstraliga 2022"]
[Site "Lublin"]
[Date "2022.06.30"]
[Round "6.16"]
[White "Sowinski, Pawel"]
[Black "Terkiewicz, Bruno"]
[Result "1-0"]
[ECO "C49"]
[WhiteElo "2060"]
[BlackElo "1320"]
[Annotator "RC"]
[PlyCount "73"]
[EventDate "2022.06.24"]
[EventType "team-tourn"]
[EventCountry "POL"]
[SourceTitle "playchess.com"]
[Source "ChessBase"]
[SourceQuality "1"]
[TimeControl "40/5400+30:1800+30"]

1. e4 {[%emt 0:00:02]} e5 {[%emt 0:00:01]} 2. Nf3 {[%emt 0:00:17]} Nf6 {[%emt 0:00:02]} 3. Nc3 {[%emt 0:02:40]} Nc6 {[%emt 0:00:06]} 4. Bb5 {[%emt 0:05:27]} Bb4 {[%emt 0:00:08]} 5. O-O {[%emt 0:02:49]} O-O {[%emt 0:00:42]} 6. d3 {[%emt 0:02:07]} Bxc3 {[%emt 0:00:11]} 7. bxc3 {[%emt 0:00:03]} d6 {[%emt 0:01:20]} 8. Bg5 {[%emt 0:03:01]} Bg4 {[%emt 0:02:28]} 9. Bh4 {[%emt 0:02:27]} Qe7 {[%emt 0:04:28]} 10. h3 {[%emt 0:02:50]} Bh5 {[%emt 0:00:06]} 11. g4 {[%emt 0:06:58]} Bg6 {[%emt 0:00:05]} 12. Bxc6 bxc6 {[%emt 0:00:06]} 13. Nd2 {[%emt 0:08:45]} Qe6 {[%emt 0:03:29]} 14. Bxf6 {[%emt 0:04:18]} Qxf6 {[%emt 0:00:06]} 15. Qe2 {[%emt 0:00:14]} Qh4 {[%emt 0:17:20]} 16. Kg2 {[%emt 0:01:47]} Qe7 {[%emt 0:13:01]} 17. Nc4 {[%emt 0:02:10]} Rab8 {[%emt 0:05:31]} 18. Rfb1 {[%emt 0:03:00]} f6 {[%emt 0:18:49]} 19. Ne3 {[%emt 0:00:21]} Bf7 {[%emt 0:01:53]} 20. c4 {[%emt 0:00:02]} Qd7 {[%emt 0:01:25]} 21. Qd2 {[%emt 0:06:59]} d5 {[%emt 0:03:47]} 22. Rxb8 {[%emt 0:09:55]} Rxb8 {[%emt 0:00:07]} 23. Qa5 {[%emt 0:00:36]} dxe4 {[%emt 0:03:07]} 24. Qxa7 {[%emt 0:00:41]} Rd8 {[%emt 0:00:27]} 25. dxe4 {[%emt 0:01:53]} Qd4 {[%emt 0:01:19]} 26. Qxc7 {[%emt 0:04:09]} Rf8 {[%emt 0:01:14]} 27. Rd1 {[%emt 0:04:33]} Qxe4+ {[%emt 0:00:09]} 28. Kg1 {[%emt 0:00:01]} Qf3 {[%emt 0:08:17]} 29. Rd7 {[%emt 0:02:49]} Qxh3 {[%emt 0:00:42]} 30. Rd8 {[%emt 0:07:19]} Bg6 {[%emt 0:04:06]} 31. Rxf8+ {[%emt 0:00:38]} Kxf8 {[%emt 0:00:08]} 32. Qxc6 {[%emt 0:00:53]} Be8 {[%emt 0:01:15]} 33. Qd6+ {[%emt 0:00:15]} Kf7 {[%emt 0:00:31]} 34. Qd5+ {[%emt 0:00:10]} Ke7 {[%emt 0:00:23]} 35. Nf5+ {[%emt 0:00:04]} Kf8 {[%emt 0:00:10]} 36. Qd6+ {[%emt 0:00:01]} Kg8 {[%emt 0:00:17]} 37. Qe6+ {[%emt 0:00:01]} 1-0

[Event "Polish Youth Ekstraliga 2022"]
[Site "Lublin"]
[Date "2022.06.30"]
[Round "6.17"]
[White "Bukala, Weronika"]
[Black "Wikar, Martyna"]
[Result "0-1"]
[ECO "E90"]
[WhiteElo "1827"]
[BlackElo "2197"]
[Annotator "RC"]
[PlyCount "84"]
[EventDate "2022.06.24"]
[EventType "team-tourn"]
[EventCountry "POL"]
[SourceTitle "playchess.com"]
[Source "ChessBase"]
[SourceQuality "1"]
[TimeControl "40/5400+30:1800+30"]

1. d4 {[%emt 0:00:22]} Nf6 {[%emt 0:00:07]} 2. c4 {[%emt 0:00:41]} g6 {[%emt 0:00:02]} 3. Nc3 {[%emt 0:00:11]} Bg7 {[%emt 0:00:05]} 4. e4 {[%emt 0:00:09]} d6 {[%emt 0:00:03]} 5. Nf3 {[%emt 0:00:06]} Nc6 {[%emt 0:00:52]} 6. Be2 {[%emt 0:00:45]} O-O {[%emt 0:00:18]} 7. O-O {[%emt 0:00:20]} e5 {[%emt 0:00:03]} 8. dxe5 {[%emt 0:00:25]} dxe5 {[%emt 0:01:56]} 9. Bg5 {[%emt 0:00:25]} Qxd1 {[%emt 0:06:17]} 10. Rfxd1 {[%emt 0:01:40]} Bg4 {[%emt 0:01:34]} 11. h3 {[%emt 0:04:42]} Bxf3 {[%emt 0:02:18]} 12. Bxf3 {[%emt 0:00:12]} Nd4 {[%emt 0:01:31]} 13. Be3 {[%emt 0:15:11]} Nc2 {[%emt 0:04:23]} 14. Bc5 Nxa1 {[%emt 0:00:40]} 15. Bxf8 {[%emt 0:00:44]} Bxf8 {[%emt 0:00:25]} 16. Rxa1 {[%emt 0:00:05]} c6 {[%emt 0:00:13]} 17. a3 {[%emt 0:02:44]} a5 {[%emt 0:00:38]} 18. Rd1 {[%emt 0:05:47]} Bc5 {[%emt 0:00:56]} 19. Na4 {[%emt 0:03:15]} Bd4 {[%emt 0:03:08]} 20. c5 {[%emt 0:03:15]} Kf8 {[%emt 0:00:07]} 21. Nb6 {[%emt 0:01:13]} Re8 {[%emt 0:04:34]} 22. Na4 {[%emt 0:08:47]} Ke7 {[%emt 0:01:12]} 23. Rb1 {[%emt 0:05:13]} Nd7 {[%emt 0:03:11]} 24. Rc1 {[%emt 0:06:08]} f5 {[%emt 0:04:43]} 25. Rc2 {[%emt 0:02:12]} Nf6 {[%emt 0:01:09]} 26. exf5 {[%emt 0:00:50]} gxf5 {[%emt 0:00:08]} 27. Nb6 {[%emt 0:01:22]} e4 {[%emt 0:06:24]} 28. Be2 {[%emt 0:00:51]} Rg8 {[%emt 0:02:31]} 29. Nc4 {[%emt 0:02:24]} Nd5 {[%emt 0:03:13]} 30. Nd6 {[%emt 0:04:18]} Kf6 {[%emt 0:01:14]} 31. Bc4 {[%emt 0:01:40]} e3 {[%emt 0:06:00]} 32. Bxd5 {[%emt 0:04:24]} exf2+ {[%emt 0:03:48]} 33. Kf1 {[%emt 0:00:02]} cxd5 {[%emt 0:02:53]} 34. Rd2 {[%emt 0:06:50]} Bxc5 {[%emt 0:02:38]} 35. Nxb7 {[%emt 0:01:31]} Be3 {[%emt 0:02:01]} 36. Rxd5 {[%emt 0:11:47]} Rc8 {[%emt 0:01:07]} 37. Rd1 {[%emt 0:00:01]} a4 {[%emt 0:00:41]} 38. Ke2 {[%emt 0:02:04]} f4 {[%emt 0:01:40]} 39. g3 {[%emt 0:03:38]} fxg3 {[%emt 0:01:12]} 40. Nd6 {[%emt 0:00:00]} g2 {[%emt 0:00:00]} 41. Ne4+ {[%emt 0:02:14]} Ke7 {[%emt 0:07:54]} 42. Nxf2 {[%emt 0:00:24]} Rc1 {[%emt 0:00:10]} 0-1